bitfinex/quotes_BTCUSD_20251007
["timestamp","ask_amount","ask_price","bid_price","bid_amount"]
[1759874016125,3.86059999,121950.0,121940.0,0.00651112]
[1759874016386,4.13704799,121950.0,121940.0,0.00651112]
[1759874016586,4.09704799,121950.0,121940.0,0.00651112]
[1759874017062,2.25169399,121950.0,121940.0,0.00651112]
[1759874017276,4.08412899,121950.0,121940.0,0.00651112]
[1759874017484,4.07999599,121950.0,121940.0,0.00651112]
[1759874017683,3.89040283,121950.0,121940.0,0.00651112]
[1759874017816,3.96699883,121950.0,121940.0,0.00651112]
[1759874018178,3.90699883,121950.0,121940.0,0.00651112]
[1759874018381,2.23405683,121950.0,121940.0,0.00651112]
[1759874018586,4.11437883,121950.0,121940.0,0.00651112]
[1759874018789,2.23459683,121950.0,121940.0,0.00651112]
[1759874019001,4.12091083,121950.0,121940.0,0.00651112]
[1759874019360,4.11192983,121950.0,121940.0,0.00651112]
[1759874019559,4.06855783,121950.0,121940.0,0.00651112]
[1759874019774,3.09859289,121950.0,121940.0,0.00651112]
[1759874020042,3.17703383,121950.0,121940.0,0.00651112]
[1759874020247,3.60480183,121950.0,121940.0,0.00651112]
[1759874020456,3.59234483,121950.0,121940.0,0.00651112]
[1759874020868,3.26207583,121950.0,121940.0,0.00651112]
[1759874021072,3.64430183,121950.0,121940.0,0.00651112]
[1759874021278,3.55623483,121950.0,121940.0,0.00651112]
[1759874021477,3.61417983,121950.0,121940.0,0.00651112]
[1759874021636,2.25794683,121950.0,121940.0,0.00651112]
[1759874021839,3.26002083,121950.0,121940.0,0.00651112]
[1759874022038,2.25794683,121950.0,121940.0,0.00651112]
[1759874022392,3.69506083,121950.0,121940.0,0.00651112]
[1759874022830,2.25794683,121950.0,121940.0,0.00651112]
[1759874023038,3.63588083,121950.0,121940.0,0.00651112]
[1759874023242,2.25794683,121950.0,121940.0,0.00651112]
[1759874023465,3.63688083,121950.0,121940.0,0.00651112]
[1759874024091,2.25794683,121950.0,121940.0,0.00651112]
[1759874024296,3.75344083,121950.0,121940.0,0.00651112]
[1759874024706,2.25794683,121950.0,121940.0,0.00651112]
[1759874024919,3.58541083,121950.0,121940.0,0.00651112]
[1759874025125,3.64487983,121950.0,121940.0,0.00651112]
[1759874025330,3.72137883,121950.0,121940.0,0.00651112]
[1759874025531,3.48917483,121950.0,121940.0,0.00651112]
[1759874025736,4.00453183,121950.0,121940.0,0.00651112]
[1759874026156,2.25794683,121950.0,121940.0,0.00651112]
[1759874026362,4.00353883,121950.0,121940.0,0.00651112]
[1759874026567,3.82497483,121950.0,121940.0,0.00651112]
[1759874026769,4.02145983,121950.0,121940.0,0.00651112]
[1759874027185,2.25794683,121950.0,121940.0,0.00651112]
[1759874027384,4.07821983,121950.0,121940.0,0.00651112]
[1759874027591,4.26349383,121950.0,121940.0,0.00651112]
[1759874027788,4.23661083,121950.0,121940.0,0.00651112]
[1759874028028,4.17987183,121950.0,121940.0,0.00651112]
[1759874028726,4.21048083,121950.0,121940.0,0.00651112]
[1759874028956,4.09373883,121950.0,121940.0,0.00651112]
[1759874029164,4.11019933,121950.0,121940.0,0.00651112]
[1759874029378,2.25799733,121950.0,121940.0,0.00651112]
[1759874029599,4.16429233,121950.0,121940.0,0.00651112]
[1759874030475,4.22159333,121950.0,121940.0,0.00651112]
[1759874030679,2.25799733,121950.0,121940.0,0.00651112]
[1759874031056,4.17414433,121950.0,121940.0,0.00651112]
[1759874031538,4.17414433,121950.0,121940.0,0.03213112]
[1759874031539,1.66275561,121950.0,121940.0,0.03213112]
[1759874031733,1.88943261,121950.0,121940.0,0.03213112]
[1759874032134,1.89025261,121950.0,121940.0,0.03213112]
[1759874032369,1.89112461,121950.0,121940.0,0.03213112]
[1759874033521,1.90753561,121950.0,121940.0,0.03213112]
[1759874033791,1.24548961,121950.0,121940.0,0.03213112]
[1759874034099,1.89896561,121950.0,121940.0,0.03213112]
[1759874034308,1.89797261,121950.0,121940.0,0.03213112]
[1759874034517,1.24548961,121950.0,121940.0,0.00651112]
[1759874034714,2.38173333,121950.0,121940.0,0.00651112]
[1759874034932,2.38173133,121950.0,121940.0,0.00651112]
[1759874036115,2.74143633,121950.0,121940.0,0.00651112]
[1759874036297,2.72850933,121950.0,121940.0,0.00651112]
[1759874037165,1.73049733,121950.0,121940.0,0.00651112]
[1759874037579,2.78850933,121950.0,121940.0,0.00651112]
[1759874037779,1.73049733,121950.0,121940.0,0.00651112]
[1759874037983,2.78850933,121950.0,121940.0,0.00651112]
[1759874038187,2.73904833,121950.0,121940.0,0.00651112]
[1759874038387,1.73049733,121950.0,121940.0,0.00651112]
[1759874038525,2.67805533,121950.0,121940.0,0.00651112]
[1759874039290,2.64097933,121950.0,121940.0,0.00651112]
[1759874039635,1.73049733,121950.0,121940.0,0.00651112]
[1759874039847,2.67647033,121950.0,121940.0,0.00651112]
[1759874040045,2.61200333,121950.0,121940.0,0.00651112]
[1759874040265,1.55256153,121950.0,121940.0,0.00651112]
[1759874040483,2.54505142,121950.0,121940.0,0.00651112]
[1759874040796,1.71656342,121950.0,121940.0,0.00651112]
[1759874041015,2.54505042,121950.0,121940.0,0.00651112]
[1759874041379,1.37041498,121950.0,121940.0,0.02285112]
[1759874041597,1.71656342,121950.0,121940.0,0.03189112]
[1759874041813,2.68211542,121950.0,121940.0,0.01555112]
[1759874042015,2.68211542,121950.0,121940.0,0.00651112]
[1759874042215,2.53838142,121950.0,121940.0,0.00651112]
[1759874042547,2.62810342,121950.0,121940.0,0.00651112]
[1759874043162,2.68211542,121950.0,121940.0,0.00651112]
[1759874043367,2.62810342,121950.0,121940.0,0.00651112]
[1759874044125,2.70202342,121950.0,121940.0,0.00651112]
[1759874044443,2.79579142,121950.0,121940.0,0.00651112]
[1759874044667,2.56803042,121950.0,121940.0,0.00651112]
[1759874045033,2.47927342,121950.0,121940.0,0.00651112]
[1759874045235,2.65134142,121950.0,121940.0,0.00651112]
[1759874046167,1.71656342,121950.0,121940.0,0.00651112]
[1759874047364,0.74654798,121950.0,121940.0,0.00651112]
[1759874047560,1.71656342,121950.0,121940.0,0.00651112]
[1759874052077,0.74654798,121950.0,121940.0,0.00651112]
[1759874052214,1.71656342,121950.0,121940.0,0.00651112]
[1759874052889,2.41703242,121950.0,121940.0,0.00651112]
[1759874053064,2.38703242,121950.0,121940.0,0.00651112]
[1759874053274,2.38636042,121950.0,121940.0,0.00651112]
[1759874053459,2.36574042,121950.0,121940.0,0.00651112]
[1759874053806,2.38697142,121950.0,121940.0,0.00651112]
[1759874053957,2.38715342,121950.0,121940.0,0.00651112]
[1759874054158,1.71656342,121950.0,121940.0,0.00651112]
[1759874058004,1.71656342,121950.0,121940.0,0.01555112]
[1759874060038,1.71652342,121950.0,121940.0,0.03189112]
[1759874061264,1.71652342,121950.0,121940.0,0.01555112]
[1759874062459,1.71652342,121950.0,121940.0,0.00651112]
[1759874063113,1.2315157,121950.0,121940.0,0.00651112]
[1759874063611,0.9998357,121950.0,121940.0,0.03189112]
[1759874063811,1.2315157,121950.0,121940.0,0.03189112]
[1759874065929,1.2315157,121950.0,121940.0,0.01555112]
[1759874066260,1.2315157,121950.0,121940.0,0.03215112]
[1759874066690,0.74650798,121950.0,121940.0,0.03215112]
[1759874066817,1.2315157,121950.0,121940.0,0.03215112]
[1759874069460,1.2315157,121950.0,121940.0,0.00651112]
[1759874072297,1.2315157,121950.0,121940.0,0.01558112]
[1759874073434,1.2315157,121950.0,121940.0,0.00651112]
[1759874074792,0.74650798,121950.0,121940.0,0.00651112]
[1759874074992,1.2315157,121950.0,121940.0,0.00651112]
[1759874077296,0.64268798,121950.0,121940.0,0.03218112]
[1759874077500,1.3593357,121950.0,121940.0,0.03218112]
[1759874077698,1.2314757,121950.0,121940.0,0.05666112]
[1759874078336,1.3376027,121950.0,121940.0,0.05666112]
[1759874078949,1.2314757,121950.0,121940.0,0.05666112]
[1759874079245,1.3371127,121950.0,121940.0,0.05666112]
[1759874079445,1.3335117,121950.0,121940.0,0.05666112]
[1759874079646,1.3349717,121950.0,121940.0,0.05666112]
[1759874079849,1.3344767,121950.0,121940.0,0.06588112]
[1759874080416,0.9998357,121950.0,121940.0,0.06588112]
[1759874080634,1.3338127,121950.0,121940.0,0.06588112]
[1759874080834,1.3089537,121950.0,121940.0,0.06588112]
[1759874081026,1.3090777,121950.0,121940.0,0.06588112]
[1759874081490,1.3086997,121950.0,121940.0,0.06588112]
[1759874081710,1.3089767,121950.0,121940.0,0.06588112]
[1759874081886,1.3088637,121950.0,121940.0,0.06588112]
[1759874082300,1.2075857,121950.0,121940.0,0.06588112]
[1759874082492,1.3080637,121950.0,121940.0,0.06588112]
[1759874082695,1.3099827,121950.0,121940.0,0.06588112]
[1759874082893,0.9759457,121950.0,121940.0,0.06588112]
[1759874083107,1.2075857,121950.0,121940.0,0.06588112]
[1759874083690,1.3090827,121950.0,121940.0,0.06588112]
[1759874083898,1.2075857,121950.0,121940.0,0.06588112]
[1759874085616,0.72257798,121950.0,121940.0,0.06588112]
[1759874085742,1.2075857,121950.0,121940.0,0.06588112]
[1759874087778,0.72257798,121950.0,121940.0,0.06588112]
[1759874087983,1.2075857,121950.0,121940.0,0.06588112]
[1759874088826,0.72257798,121950.0,121940.0,0.06588112]
[1759874088966,1.2075857,121950.0,121940.0,0.06588112]
[1759874091079,1.20746676,121950.0,121940.0,0.06588112]
[1759874092452,1.32167376,121950.0,121940.0,0.06588112]
[1759874092635,1.20746676,121950.0,121940.0,0.06588112]
[1759874093031,1.31992876,121950.0,121940.0,0.06588112]
[1759874093239,1.20746676,121950.0,121940.0,0.06588112]
[1759874095636,0.88053067,121950.0,121940.0,0.06588112]
[1759874096070,0.88053067,121950.0,121940.0,0.07557112]
[1759874098012,1.00577167,121950.0,121940.0,0.07557112]
[1759874098225,0.88053067,121950.0,121940.0,0.07557112]
[1759874099745,1.22053067,121950.0,121940.0,0.08500112]
[1759874101914,0.73564189,121950.0,121940.0,0.08500112]
[1759874102075,1.22053067,121950.0,121940.0,0.08500112]
[1759874105508,0.73564189,121950.0,121940.0,0.08500112]
[1759874105713,1.22045067,121950.0,121940.0,0.08500112]
[1759874110102,1.22045067,121950.0,121940.0,0.01558112]
[1759874110103,1.41220267,121950.0,121940.0,0.01558112]
[1759874110785,1.38839967,121950.0,121940.0,0.01558112]
[1759874112447,1.32903567,121950.0,121940.0,0.03159112]
[1759874115096,1.32903567,121950.0,121940.0,0.05495112]
[1759874115459,1.32903567,121950.0,121940.0,0.08331112]
[1759874117993,1.32903567,121950.0,121940.0,0.04394112]
[1759874118214,1.32903567,121950.0,121940.0,0.00651112]
[1759874118439,1.32903567,121950.0,121940.0,0.03172112]
[1759874119930,1.22045067,121950.0,121940.0,0.07401112]
[1759874121550,1.36546567,121950.0,121940.0,0.00651112]
[1759874121774,1.22045067,121950.0,121940.0,0.05508112]
[1759874122161,1.34529467,121950.0,121940.0,0.06432112]
[1759874122388,1.34529467,121950.0,121940.0,0.07401112]
[1759874124905,0.86040589,121950.0,121940.0,0.07401112]
[1759874125180,1.34529467,121950.0,121940.0,0.07401112]
[1759874126077,1.22045067,121950.0,121940.0,0.07401112]
[1759874126278,0.98889067,121950.0,121940.0,0.07401112]
[1759874126485,1.22041067,121950.0,121940.0,0.07401112]
[1759874129883,1.37039167,121950.0,121940.0,0.07401112]
[1759874130699,1.33659067,121950.0,121940.0,0.07401112]
[1759874131352,1.33659067,121950.0,121940.0,0.03172112]
[1759874131740,1.33659067,121950.0,121940.0,0.05552112]
[1759874132921,1.22041067,121950.0,121940.0,0.05552112]
[1759874133131,1.37211567,121950.0,121940.0,0.05552112]
[1759874133353,1.34439667,121950.0,121940.0,0.05552112]
[1759874135256,1.34439667,121950.0,121940.0,0.06479112]
[1759874135998,1.22041067,121950.0,121940.0,0.06479112]
[1759874137149,1.34408667,121950.0,121940.0,0.06479112]
[1759874137984,1.22041067,121950.0,121940.0,0.06479112]
[1759874138754,1.22041067,121950.0,121940.0,0.03172112]
[1759874139061,1.32564467,121950.0,121940.0,0.05552112]
[1759874139516,1.32447267,121950.0,121940.0,0.05552112]
[1759874139729,1.32641867,121950.0,121940.0,0.05552112]
[1759874139877,1.37263867,121950.0,121940.0,0.06516112]
[1759874140702,1.34357767,121950.0,121940.0,0.06516112]
[1759874140902,1.22041067,121950.0,121940.0,0.06516112]
[1759874141117,1.37036867,121950.0,121940.0,0.06516112]
[1759874141443,1.36730822,121950.0,121940.0,0.07508112]
[1759874148448,1.24504122,121950.0,121940.0,0.07508112]
[1759874149624,1.44087722,121950.0,121940.0,0.00651112]
[1759874149836,0.95598844,121950.0,121940.0,0.00651112]
[1759874150032,1.44087722,121950.0,121940.0,0.03197112]
[1759874150233,1.37053022,121950.0,121940.0,0.05448112]
[1759874150805,1.24504122,121950.0,121940.0,0.03197112]
[1759874151008,1.34539622,121950.0,121940.0,0.03197112]
[1759874151209,1.24504122,121950.0,121940.0,0.03197112]
[1759874151411,1.38107622,121950.0,121940.0,0.03197112]
[1759874151613,1.38107622,121950.0,121940.0,0.01645112]
[1759874151812,1.36842722,121950.0,121940.0,0.00651112]
[1759874152263,1.36842722,121950.0,121940.0,0.03197112]
[1759874152753,1.36842722,121950.0,121940.0,0.05448112]
[1759874153171,1.36844356,121950.0,121940.0,0.05448112]
[1759874153784,1.36844356,121950.0,121940.0,0.06412112]
[1759874156598,1.36844356,121950.0,121940.0,0.03197112]
[1759874156796,1.36844356,121950.0,121940.0,0.01645112]
[1759874157247,1.36844356,121950.0,121940.0,0.00651112]
[1759874157825,1.36844356,121950.0,121940.0,0.01644112]
[1759874158201,1.36844356,121950.0,121940.0,0.03186112]
[1759874158434,1.87520954,121950.0,121940.0,0.00651112]
[1759874158644,5.19526654,121950.0,121940.0,0.00651112]
[1759874158845,5.10410554,121950.0,121940.0,0.00651112]
[1759874159080,5.05649954,121950.0,121940.0,0.00651112]
[1759874159280,1.75182354,121950.0,121940.0,0.00651112]
[1759874159480,4.73545968,121950.0,121940.0,0.00651112]
[1759874159686,4.73379668,121950.0,121940.0,0.00651112]
[1759874159913,4.75607668,121950.0,121940.0,0.00651112]
[1759874160069,4.73346468,121950.0,121940.0,0.00651112]
[1759874160278,4.73034068,121950.0,121940.0,0.00651112]
[1759874160476,4.70761568,121950.0,121940.0,0.00651112]
[1759874160683,4.73027968,121950.0,121940.0,0.00651112]
[1759874160950,1.72996268,121950.0,121940.0,0.00651112]
[1759874161153,4.70761568,121950.0,121940.0,0.00651112]
[1759874161354,4.70913668,121950.0,121940.0,0.00651112]
[1759874161559,5.03458268,121950.0,121940.0,0.00651112]
[1759874161771,5.03786768,121950.0,121940.0,0.00651112]
[1759874161947,1.72996268,121950.0,121940.0,0.00651112]
[1759874162147,5.04196868,121950.0,121940.0,0.00651112]
[1759874163021,5.04278868,121950.0,121940.0,0.00651112]
[1759874163216,1.72996268,121950.0,121940.0,0.00651112]
[1759874163421,4.88717268,121950.0,121940.0,0.00651112]
[1759874163613,5.05920268,121950.0,121940.0,0.00651112]
[1759874163793,1.72996268,121950.0,121940.0,0.00651112]
[1759874163997,5.08108568,121950.0,121940.0,0.00651112]
[1759874164401,5.08190568,121950.0,121940.0,0.00651112]
[1759874164943,1.72996268,121950.0,121940.0,0.00651112]
[1759874165146,4.73020668,121950.0,121940.0,0.00651112]
[1759874165364,4.38592168,121950.0,121940.0,0.00651112]
[1759874165577,4.48510368,121950.0,121940.0,0.00651112]
[1759874167486,1.72996268,121950.0,121940.0,0.00651112]
[1759874167698,4.46555968,121950.0,121940.0,0.00651112]
[1759874167896,1.72996268,121950.0,121940.0,0.00651112]
[1759874168118,4.46255268,121950.0,121940.0,0.00651112]
[1759874168296,1.72996268,121950.0,121940.0,0.00651112]
[1759874168535,4.36407268,121950.0,121940.0,0.00651112]
[1759874168738,1.72996268,121950.0,121940.0,0.00651112]
[1759874169126,4.47978768,121950.0,121940.0,0.00651112]
[1759874169326,4.52871468,121950.0,121940.0,0.00651112]
[1759874170510,4.44664468,121950.0,121940.0,0.00651112]
[1759874170774,1.72996268,121950.0,121940.0,0.00651112]
[1759874170904,4.50667768,121950.0,121940.0,0.00651112]
[1759874171544,1.72996268,121950.0,121940.0,0.00651112]
[1759874171743,4.50606268,121950.0,121940.0,0.00651112]
[1759874171943,4.50583468,121950.0,121940.0,0.00651112]
[1759874172556,1.72996268,121950.0,121940.0,0.00651112]
[1759874172780,4.52811968,121950.0,121940.0,0.00651112]
[1759874173143,4.46479768,121950.0,121940.0,0.00651112]
[1759874173910,1.72996268,121950.0,121940.0,0.00651112]
[1759874174280,4.46479768,121950.0,121940.0,0.00651112]
[1759874174725,4.24207268,121950.0,121940.0,0.00651112]
[1759874174922,1.72996268,121950.0,121940.0,0.00651112]
[1759874175152,4.45729168,121950.0,121940.0,0.00651112]
[1759874175523,1.72996268,121950.0,121940.0,0.00651112]
[1759874175728,4.45729168,121950.0,121940.0,0.00651112]
[1759874176169,4.46131168,121950.0,121940.0,0.00651112]
[1759874176367,1.72996268,121950.0,121940.0,0.00651112]
[1759874176711,4.46251168,121950.0,121940.0,0.00651112]
[1759874177881,4.44609668,121950.0,121940.0,0.00651112]
[1759874179117,4.46802768,121950.0,121940.0,0.00651112]
[1759874179948,1.72996268,121950.0,121940.0,0.00651112]
[1759874180078,4.46559968,121950.0,121940.0,0.00651112]
[1759874180299,3.68855768,121950.0,121940.0,0.00651112]
[1759874180505,3.99271168,121950.0,121940.0,0.00651112]
[1759874180703,1.72996268,121950.0,121940.0,0.00651112]
[1759874180896,1.73902656,121950.0,121940.0,0.00651112]
[1759874181127,1.01353756,121950.0,121940.0,0.05475112]
[1759874181329,1.01353756,121950.0,121940.0,0.2280362]
[1759874181528,1.24501756,121950.0,121940.0,0.2372762]
[1759874181825,1.01353756,121950.0,121940.0,0.07326112]
[1759874181986,1.24501756,121950.0,121940.0,0.2372762]
[1759874182529,0.76011244,121950.0,121940.0,0.2463862]
[1759874182739,1.24501756,121950.0,121940.0,0.2463862]
[1759874183067,1.24501756,121950.0,121940.0,0.27101675]
[1759874183516,0.76011244,121950.0,121940.0,0.27101675]
[1759874183733,1.24501756,121950.0,121940.0,0.27101675]
[1759874184508,1.24501756,121950.0,121940.0,0.2463862]
[1759874185576,1.22038701,121950.0,121940.0,0.2463862]
[1759874185793,1.22038701,121950.0,121940.0,0.27101614]
[1759874188458,0.88038701,121950.0,121940.0,0.27101614]
[1759874192054,0.39548189,121950.0,121940.0,0.27101614]
[1759874192216,0.88038701,121950.0,121940.0,0.27101614]
[1759874192759,0.39548189,121950.0,121940.0,0.27101614]
[1759874193049,0.88038701,121950.0,121940.0,0.27101614]
[1759874194387,0.39548189,121950.0,121940.0,0.27101614]
[1759874194619,0.88038701,121950.0,121940.0,0.27101614]
[1759874195546,0.39548189,121950.0,121940.0,0.27101614]
[1759874195759,0.88038701,121950.0,121940.0,0.27101614]
[1759874196321,0.64890701,121950.0,121940.0,0.27101614]
[1759874196510,0.88038701,121950.0,121940.0,0.27101614]
[1759874197263,0.39548189,121950.0,121940.0,0.27101614]
[1759874197439,0.88038701,121950.0,121940.0,0.27101614]
[1759874198047,0.64890701,121950.0,121940.0,0.27101614]
[1759874198259,0.88038701,121950.0,121940.0,0.27101614]
[1759874200733,0.39548189,121950.0,121940.0,0.27101614]
[1759874201052,0.90501703,121950.0,121940.0,0.27101614]
[1759874201247,0.88038701,121950.0,121940.0,0.2463862]
[1759874207685,0.39548189,121950.0,121940.0,0.2463862]
[1759874207796,0.68767452,121950.0,121940.0,0.2463862]
[1759874208016,0.85167641,121950.0,121940.0,0.2463862]
[1759874215190,0.36677129,121950.0,121940.0,0.2463862]
[1759874218618,0.39544189,121950.0,121940.0,0.2463862]
[1759874221215,0.16400189,121950.0,121940.0,0.2463862]
[1759874221417,0.39544189,121950.0,121940.0,0.2463862]
[1759874222582,0.39544189,121950.0,121940.0,0.2413862]
[1759874223000,0.39544189,121950.0,121940.0,0.2443862]
[1759874226525,0.16400189,121950.0,121940.0,0.2443862]
[1759874226736,0.39544189,121950.0,121940.0,0.2443862]
[1759874230022,0.16400189,121950.0,121940.0,0.2443862]
[1759874230215,0.39544189,121950.0,121940.0,0.2443862]
[1759874230848,0.16400189,121950.0,121940.0,0.2443862]
[1759874231032,0.39540189,121950.0,121940.0,0.2443862]
[1759874232573,0.16400189,121950.0,121940.0,0.2443862]
[1759874232778,0.39540189,121950.0,121940.0,0.2443862]
[1759874235616,0.2314,121950.0,121940.0,0.32750826]
[1759874236823,0.25288625,121950.0,121940.0,0.32750826]
[1759874238284,0.41688789,121950.0,121940.0,0.32750826]
[1759874239357,0.18548789,121950.0,121940.0,0.32750826]
[1759874239553,0.41688789,121950.0,121940.0,0.32750826]
[1759874261772,0.41688789,121950.0,121940.0,0.35213678]
[1759874263046,0.41684789,121950.0,121940.0,0.35213678]
[1759874264440,0.02148625,121950.0,121940.0,0.35213678]
[1759874264825,0.18548789,121950.0,121940.0,0.35213678]
[1759874265034,0.41684789,121950.0,121940.0,0.35213678]
[1759874267199,0.25284625,121950.0,121940.0,0.35213678]
[1759874267409,0.41684789,121950.0,121940.0,0.35213678]
[1759874268508,0.25284625,121950.0,121940.0,0.35213678]
[1759874268714,0.41684789,121950.0,121940.0,0.35213678]
[1759874271079,0.02148625,121950.0,121940.0,0.35213678]
[1759874272271,0.18548789,121950.0,121940.0,0.35213678]
[1759874272591,0.02148625,121950.0,121940.0,0.35213678]
[1759874272823,0.18548789,121950.0,121940.0,0.35213678]
[1759874273471,0.02148625,121950.0,121940.0,0.35213678]
[1759874275073,0.18548789,121950.0,121940.0,0.35213678]
[1759874275482,0.02148625,121950.0,121940.0,0.35213678]
[1759874278688,0.18548789,121950.0,121940.0,0.35213678]
[1759874281945,0.02148625,121950.0,121940.0,0.35213678]
[1759874288619,0.02148625,121950.0,121940.0,0.83691281]
[1759874289296,0.02148625,121950.0,121940.0,0.35213678]
[1759874296757,0.02148625,121950.0,121940.0,0.83691281]
[1759874300207,0.02148625,121950.0,121940.0,0.35213678]
[1759874300408,0.02148625,121950.0,121940.0,0.83691281]
[1759874306189,0.02148625,121950.0,121940.0,0.35213678]
[1759874306718,0.02148625,121950.0,121940.0,0.83691281]
[1759874316176,0.74157967,121960.0,121950.0,0.16400164]
[1759874316388,1.06140919,121960.0,121950.0,0.21483164]
[1759874316623,1.06140919,121960.0,121950.0,0.24371164]
[1759874316842,1.06960859,121960.0,121950.0,0.24371164]
[1759874317627,1.07560859,121960.0,121950.0,0.24371164]
[1759874318215,1.05098055,121960.0,121950.0,0.24371164]
[1759874319285,0.52310452,121960.0,121950.0,0.24371164]
[1759874319522,1.00788055,121960.0,121950.0,0.24371164]
[1759874319895,0.52310452,121960.0,121950.0,0.24371164]
[1759874320113,1.00788055,121960.0,121950.0,0.24371164]
[1759874321834,1.03250857,121960.0,121950.0,0.24371164]
[1759874323722,0.91979157,121960.0,121950.0,0.24371164]
[1759874323832,0.42679181,121960.0,121950.0,0.24371164]
[1759874324040,0.0068556,121960.0,121950.0,1.04288973]
[1759874324275,0.0068556,121960.0,121950.0,1.55781766]
[1759874324509,0.0068556,121960.0,121950.0,1.66772085]
[1759874324731,0.0068556,121960.0,121950.0,1.69272084]
[1759874325364,0.0068556,121960.0,121950.0,1.69472084]
[1759874326009,0.0008556,121960.0,121950.0,1.69272084]
[1759874326215,0.0008556,121960.0,121950.0,1.76167031]
[1759874327458,0.5908141,122010.0,122000.0,0.16393442]
[1759874327675,0.79793929,122010.0,122000.0,0.80940251]
[1759874328113,0.56669929,122010.0,122000.0,0.8340182]
[1759874328518,0.50305823,122010.0,122000.0,0.8340182]
[1759874328722,0.50305823,122010.0,122000.0,0.8350182]
[1759874329136,0.50305823,122010.0,122000.0,0.8340182]
[1759874329384,0.50805823,122010.0,122000.0,0.34924217]
[1759874329592,0.50305823,122010.0,122000.0,0.35024217]
[1759874329785,0.50805823,122010.0,122000.0,0.35024217]
[1759874330108,0.00805823,122010.0,122000.0,0.8350182]
[1759874331635,0.00805823,122010.0,122000.0,0.8651701]
[1759874333546,0.00805823,122010.0,122000.0,0.38039407]
[1759874333770,0.00805823,122010.0,122000.0,0.8651701]
[1759874334678,0.00805823,122010.0,122000.0,1.34994613]
[1759874335326,0.00805823,122010.0,122000.0,1.34894613]
[1759874335749,0.00305823,122010.0,122000.0,1.34994613]
[1759874335951,0.00705823,122010.0,122000.0,1.34994613]
[1759874336103,0.00705823,122010.0,122000.0,1.34894613]
[1759874336312,0.00305823,122010.0,122000.0,1.35094613]
[1759874336673,0.00405823,122010.0,122000.0,1.35094613]
[1759874337152,0.00405823,122010.0,122000.0,0.86547292]
[1759874339694,0.00405823,122010.0,122000.0,1.37455176]
[1759874339910,0.00405823,122010.0,122000.0,0.89047291]
[1759874340130,0.00405823,122010.0,122000.0,1.37455176]
[1759874341089,0.00405823,122010.0,122000.0,1.71455176]
[1759874341307,0.00405823,122010.0,122000.0,1.81455176]
[1759874341511,0.00305823,122010.0,122000.0,1.81255176]
[1759874341721,0.00305823,122010.0,122000.0,1.81655176]
[1759874342189,0.00305823,122010.0,122000.0,2.15759176]
[1759874343037,0.57955618,122060.0,122050.0,0.16386726]
[1759874343038,0.40741023,122060.0,122050.0,0.16386726]
[1759874343260,0.06753428,122060.0,122050.0,0.26235932]
[1759874343476,0.23138812,122060.0,122050.0,0.32475932]
[1759874343656,0.06753428,122060.0,122050.0,0.32475932]
[1759874343894,0.06753428,122060.0,122050.0,0.3493654]
[1759874344109,0.00133925,122060.0,122050.0,0.3493654]
[1759874344322,0.00589165,122060.0,122050.0,0.3493654]
[1759874344525,0.16974549,122060.0,122050.0,0.3493654]
[1759874344762,0.01389165,122060.0,122050.0,0.3493654]
[1759874347280,0.01389165,122060.0,122050.0,0.3795173]
[1759874347477,0.01389165,122060.0,122050.0,0.86359615]
[1759874347854,0.01189165,122060.0,122050.0,0.86359615]
[1759874348202,0.00589165,122060.0,122050.0,0.86359615]
[1759874348409,0.01289165,122060.0,122050.0,0.86359615]
[1759874348641,0.00589165,122060.0,122050.0,0.86359615]
[1759874348807,0.00989165,122060.0,122050.0,1.09471615]
[1759874349467,0.00989165,122060.0,122050.0,1.11971614]
[1759874349833,0.00789165,122060.0,122050.0,1.17998674]
[1759874350841,0.00389165,122060.0,122050.0,1.17998674]
[1759874351051,0.00589165,122060.0,122050.0,1.17998674]
[1759874351263,0.00589165,122060.0,122050.0,1.18098674]
[1759874355636,0.00507645,122060.0,122050.0,1.18098674]
[1759874356658,0.00507645,122060.0,122050.0,1.52098674]
[1759874356889,0.20771674,122100.0,122090.0,0.16381358]
[1759874357076,0.05162504,122100.0,122090.0,0.39489358]
[1759874357294,0.00773486,122100.0,122090.0,0.55578564]
[1759874357506,0.00773486,122100.0,122090.0,0.58038367]
[1759874358198,0.01673486,122100.0,122090.0,0.58038367]
[1759874359411,0.01873486,122100.0,122090.0,0.58038367]
[1759874359614,0.01873486,122100.0,122090.0,0.34930367]
[1759874359828,0.01873486,122100.0,122090.0,0.58038367]
[1759874360035,0.01873486,122100.0,122090.0,0.34930367]
[1759874360243,3.65864072,122100.0,122090.0,0.02459803]
[1759874360440,3.65864072,122100.0,122070.0,0.05624]
[1759874360441,0.16382699,122080.0,122070.0,0.05624]
[1759874360645,0.67009848,122080.0,122070.0,0.17933421]
[1759874361064,0.67009848,122080.0,122070.0,0.22300421]
[1759874361866,0.67309848,122080.0,122070.0,0.22300421]
[1759874362066,0.67309848,122080.0,122070.0,0.16676421]
[1759874362515,1.97236773,122080.0,122070.0,0.02460215]
[1759874362693,0.16384041,122070.0,122060.0,0.2936]
[1759874362891,0.64791926,122070.0,122060.0,0.41669568]
[1759874363504,0.16384041,122070.0,122060.0,0.41669568]
[1759874363713,1.89180826,122070.0,122060.0,0.03997362]
[1759874363918,0.16385384,122060.0,122050.0,0.43959199]
[1759874364109,0.16385384,122060.0,122050.0,0.15285679]
[1759874364332,0.16385384,122060.0,122050.0,0.41849217]
[1759874364674,0.16385384,122060.0,122050.0,0.58235943]
[1759874365131,0.16385384,122060.0,122050.0,0.58435943]
[1759874365752,0.16385384,122060.0,122050.0,0.58635943]
[1759874366783,0.64791926,122070.0,122050.0,0.58635943]
[1759874366989,0.16385384,122060.0,122050.0,0.58635943]
[1759874368166,0.16385384,122060.0,122050.0,0.58435943]
[1759874368377,0.02460592,122070.0,122060.0,0.16385384]
[1759874368582,0.03275572,122070.0,122060.0,0.3258859]
[1759874368787,0.0081498,122070.0,122060.0,0.3258859]
[1759874369197,0.17199021,122070.0,122060.0,0.3258859]
[1759874369594,0.0081498,122070.0,122060.0,0.3258859]
[1759874369810,0.0091498,122070.0,122060.0,0.3258859]
[1759874370457,0.17299021,122070.0,122060.0,0.3258859]
[1759874370674,0.0091498,122070.0,122060.0,0.80996475]
[1759874371131,0.0091498,122070.0,122060.0,0.83556766]
[1759874372095,0.00151034,122070.0,122060.0,0.86571956]
[1759874372543,0.00151034,122070.0,122060.0,0.95091956]
[1759874373336,0.00151034,122070.0,122060.0,0.46684071]
[1759874373680,0.00151034,122070.0,122060.0,0.95091956]
[1759874376620,0.00051034,122070.0,122060.0,0.95091956]
[1759874377069,0.00051034,122070.0,122060.0,0.95191956]
[1759874377472,0.00051034,122070.0,122060.0,0.95391956]
[1759874379195,0.00051034,122070.0,122060.0,1.4629984]
[1759874380511,0.00051034,122070.0,122060.0,1.8029984]
[1759874380948,0.00051034,122070.0,122060.0,1.86520535]
[1759874381153,0.00051034,122070.0,122060.0,1.96520535]
[1759874381683,0.00051034,122070.0,122060.0,1.94060244]
[1759874381902,0.00051034,122070.0,122060.0,1.45652359]
[1759874384017,0.00051034,122070.0,122060.0,1.35652359]
[1759874384226,0.00051034,122070.0,122060.0,1.45652359]
[1759874385279,0.00051034,122070.0,122060.0,1.56652359]